Cogmind - Beta 11 @@@ ROGUE MODE // 2022.03.20 @ 12:42:43 Player: AbsoluteZero Result: Self-destructed Performance ------------- Evolutions (0) 0 Regions Visited (4) 800 Robots Destroyed (7) 35 Value Destroyed (171) 171 Prototype IDs (25) 500 Alien Tech Used (0) 0 Bonus (300) 300 TOTAL SCORE: 1806 Bonus ------- Aligned with FarCom 300 Cogmind --------- Core Integrity 141/250 Matter 295/300 Energy 160/160 System Corruption 0% Temperature Cool (0) Movement Rolling (80) Location -9/Mines Parts ------- > --- POWER (1) -------- Light Nuclear Core > --- PROPULSION (2) --- Wheel Wheel > --- UTILITY (2) ------ Medium Storage Unit 0b10 Alert Chip > --- WEAPON (2) ------- EM Pulse Gun Light Assault Rifle > --- INVENTORY (10) --- Aluminum Leg Aluminum Leg Aluminum Leg Aluminum Leg Large Storage Unit High-capacity Battery (250) Large Matter Pod (150) Utility Shielding Peak State ------------ > --- POWER ------------ Light Nuclear Core > --- PROPULSION ------- Wheel Wheel > --- UTILITY ---------- Medium Storage Unit 0b10 Alert Chip > --- WEAPON ----------- EM Pulse Gun Light Assault Rifle > --- INVENTORY -------- Aluminum Leg Aluminum Leg Aluminum Leg Aluminum Leg Large Storage Unit High-capacity Battery Large Matter Pod Utility Shielding [Rating: 14] Favorites ----------- Power Light Ion Engine Engine Light Ion Engine Power Core Light Nuclear Core Propulsion Wheel Wheel Wheel Utility Medium Storage Unit Storage Medium Storage Unit Processor 0b10 Alert Chip Hackware Hacking Suite Protection Utility Shielding Weapon Light Assault Rifle Energy Gun Medium Laser Ballistic Gun Light Assault Rifle Build | -11 -10 -10 -10 -9 ------- Run | Scr Mat Min Exi Min Slots Evolved . | . . . . . Power . | . . . . . Propulsion . | . . . . . Utility . | . . . . . Weapon . | . . . . . Parts Attached 15 | 5 5 1 1 3 Power 4 | 1 . 1 . 2 Engine 3 | 1 . 1 . 1 Core 1 | . . . . 1 Reactor . | . . . . . Propulsion 2 | 2 . . . . Treads . | . . . . . Leg . | . . . . . Wheel 2 | 2 . . . . Hover . | . . . . . Flight . | . . . . . Utility 5 | 1 3 . 1 . Device . | . . . . . Storage 2 | 1 1 . . . Processor 1 | . . . 1 . Hackware 1 | . 1 . . . Protection 1 | . 1 . . . Artifact . | . . . . . Weapon 4 | 1 2 . . 1 Energy Gun 3 | 1 1 . . 1 Energy Cannon . | . . . . . Ballistic Gun 1 | . 1 . . . Ballistic Cannon . | . . . . . Launcher . | . . . . . Special Weapon . | . . . . . Impact Weapon . | . . . . . Slashing Weapon . | . . . . . Piercing Weapon . | . . . . . Special Melee Weapon . | . . . . . Unidentified Prototypes . | . . . . . Parts Lost 3 | . . . . 3 Power 2 | . . . . 2 Propulsion . | . . . . . Utility . | . . . . . Weapon 1 | . . . . 1 Highest Loss Streak 3 | . . . . 3 To Critical Strikes . | . . . . . Average Slot Usage (%) 98 | . 91 100 100 99 Engine 10 | . 14 14 14 2 Core 3 | . . . . 10 Wheel 28 | . 28 28 28 28 Storage 14 | . 14 14 14 14 Processor 6 | . . . 7 14 Hackware 5 | . 3 14 6 . Energy Gun 14 | . 14 14 14 14 Ballistic Gun 13 | . 12 14 14 14 Naked Turns . | . . . . . Heaviest Build 18 | 10 17 16 16 18 Greatest Support 20 | 20 20 20 20 20 Greatest Overweight (x) . | . . . . . Average Overweight (x) . | . . . . . Largest Inventory Capacity 10 | 8 10 10 10 10 Average Capacity 9 | 6 9 10 10 10 Most Carried 8 | 5 7 7 8 8 Average Carried 6 | 3 5 6 6 7 Final Capacity 10 | 8 10 10 10 10 Final Carried 8 | 5 6 6 8 8 Class Distribution -------------------- 100% | Mutant Dominant Class ---------------- Mutant | -10/Materials Mutant | -10/Mines Mutant | -10/Exiles Mutant | -9/Mines Resources | -11 -10 -10 -10 -9 ----------- Run | Scr Mat Min Exi Min Matter Collected 394 | 249 13 36 33 63 Remotely . | . . . . . Salvage Created 182 | . 13 36 . 133 Parts 13 | . 3 4 . 6 Haulers Intercepted . | . . . . . Recyclers Shooed . | . . . . . Parts Field Recycled . | . . . . . Retrieved Matter . | . . . . . Parts Self-Destructed . | . . . . . Prevented . | . . . . . Kills | -11 -10 -10 -10 -9 ------- Run | Scr Mat Min Exi Min Combat Hostiles Destroyed 6 | . . 3 . 3 Guns 6 | . . 3 . 3 Classes Destroyed 3 | . 1 1 . 1 Operator 1 | . 1 . . . Swarmer 3 | . . 3 . . Grunt 3 | . . . . 3 Best Kill Streak 2 | . 1 2 . 2 Combat Bots Only 2 | . . 2 . 2 Max Kills in Single Turn 1 | . 1 1 . 1 Gunslinging . | . . . . . Exploded . | . . . . . Melee . | . . . . . Uniques/NPCs Destroyed . | . . . . . Combat | -11 -10 -10 -10 -9 -------- Run | Scr Mat Min Exi Min Damage Taken 417 | . . 115 . 302 Core 109 | . . 36 . 73 Absorbed by Shields . | . . . . . Core Remaining (%) 100 | 100 . . . . Volleys Fired 31 | . 1 10 . 20 Largest 2 | . 2 2 . 2 Hottest 70 | . 70 70 . 70 Shots Fired 62 | . 2 20 . 40 Gun 62 | . 2 20 . 40 Cannon . | . . . . . Launcher . | . . . . . Special . | . . . . . Kinetic 31 | . 1 10 . 20 Thermal 23 | . 1 10 . 12 Explosive . | . . . . . Electromagnetic 8 | . . . . 8 Robot Hit Streak 10 | . 2 4 . 10 Robot Miss Streak 3 | . . 2 . 3 Penetration Max . | . . . . . Secondary Targets . | . . . . . Shots Hit Robots 36 | . 2 13 . 21 Core Hits 13 | . 2 4 . 7 Critical Kills . | . . . . . Critical Parts Destroyed . | . . . . . Critical Strikes 1 | . . . . 1 Corrupt 1 | . . . . 1 Melee Attacks . | . . . . . Impact . | . . . . . Slashing . | . . . . . Piercing . | . . . . . Sneak Attacks . | . . . . . Combat Hostiles . | . . . . . Follow-up Attacks . | . . . . . Damage Inflicted 378 | . 22 132 . 224 Guns 378 | . 22 132 . 224 Cannons . | . . . . . Explosions . | . . . . . Melee . | . . . . . Ramming . | . . . . . Kinetic 162 | . 10 45 . 107 Thermal 177 | . 12 87 . 78 Explosive . | . . . . . Electromagnetic 39 | . . . . 39 Impact . | . . . . . Slashing . | . . . . . Piercing . | . . . . . Highest Corruption . | . . . . . Average Corruption . | . . . . . Corruption Purged . | . . . . . Corruption Blocked . | . . . . . Overload Shots . | . . . . . Overflow Damage . | . . . . . Projectiles . | . . . . . Explosions . | . . . . . Melee . | . . . . . Knockbacks . | . . . . . Impact . | . . . . . Kinetic . | . . . . . Secondary . | . . . . . Self-Inflicted Damage . | . . . . . Shots . | . . . . . Rammed . | . . . . . Targets Rammed . | . . . . . Kicked . | . . . . . Crushed . | . . . . . Highest Temperature 261 | . 30 130 . 261 Average Temperature 94 | . 18 62 . 113 Received Heat Transfer 180 | . . . . 180 Effects 3 | . . . . 3 Interference 3 | . . . . 3 Siege Activations . | . . . . . Robots Corrupted . | . . . . . Combat Hostiles . | . . . . . Parts Fried . | . . . . . Impact Corruptions . | . . . . . Robots Melted . | . . . . . Combat Hostiles . | . . . . . Parts Melted . | . . . . . Heat Transferred 518 | . 37 259 . 222 Parts Sabotaged . | . . . . . Parts Stolen . | . . . . . Parts Stripped . | . . . . . Power Chain Reactions . | . . . . . Missiles Intercepted . | . . . . . Alert | -11 -10 -10 -10 -9 ------- Run | Scr Mat Min Exi Min Peak Influence 118 | . 48 118 . 56 Initial 18 | . . 18 . . Average 42 | . 12 68 . 48 Maximum Alert Level . | . . . . . Low Security (%) 100 | 100 100 100 . 100 Level 1 . | . . . . . Level 2 . | . . . . . Level 3 . | . . . . . Level 4 . | . . . . . Level 5 . | . . . . . High Security . | . . . . . Max Security . | . . . . . Squads Dispatched 1 | . 1 . . . Investigation 1 | . 1 . . . Extermination . | . . . . . Reinforcement . | . . . . . Assault . | . . . . . Garrison . | . . . . . Intercept . | . . . . . Searches Triggered . | . . . . . Construction Impeded . | . . . . . Haulers Reinforced . | . . . . . Active Scanning Responses . | . . . . . Cargo Convoy Interrupts . | . . . . . Stealth | -11 -10 -10 -10 -9 --------- Run | Scr Mat Min Exi Min Distress Signals 2 | . 2 . . . Communications Jammed . | . . . . . Distress Signals . | . . . . . Times Spotted 9 | . 2 4 . 3 Peak Tracking Total 3 | . 1 3 . 3 Tactical Retreats 1 | . . 1 . . Traps | -11 -10 -10 -10 -9 ------- Run | Scr Mat Min Exi Min Traps Triggered . | . . . . . Indirectly . | . . . . . Trap Hack Attempts . | . . . . . Triggered . | . . . . . Disarmed . | . . . . . Reprogrammed . | . . . . . Reused . | . . . . . Traps Extracted . | . . . . . Installed . | . . . . . Triggered . | . . . . . Machines | -11 -10 -10 -10 -9 ---------- Run | Scr Mat Min Exi Min Machines Disabled 1 | . . . . 1 Max in Single Turn 1 | . . . . 1 Machines Sabotaged . | . . . . . Garrisons Compromised . | . . . . . Overloaded Fab Kills . | . . . . . Hacking | -11 -10 -10 -10 -9 --------- Run | Scr Mat Min Exi Min Machines Accessed 3 | . 1 . 2 . Terminals 1 | . 1 . . . Fabricators . | . . . . . Repair Stations . | . . . . . Recycling Units . | . . . . . Scanalyzers . | . . . . . Garrison Access . | . . . . . Total Hacks 8 | . 6 . 2 . Successful 7 | . 5 . 2 . Failed 1 | . 1 . . . Catastrophic . | . . . . . Database Lockouts . | . . . . . Manual 4 | . 3 . 1 . Terminals 6 | . 6 . . . Fabricators . | . . . . . Repair Stations . | . . . . . Recycling Units . | . . . . . Scanalyzers . | . . . . . Garrison Access . | . . . . . Terminal Hacks 6 | . 4 . 2 . Record 2 | . 1 . 1 . Prototype ID Bank 1 | . 1 . . . Registered Prototypes 1 | . 1 . . . Zone Layout 1 | . 1 . . . EX-Prototype ID Bank 1 | . . . 1 . Fabricator Hacks . | . . . . . Repair Station Hacks . | . . . . . Recycling Unit Hacks . | . . . . . Scanalyzer . | . . . . . Garrison Access Hacks . | . . . . . Unauthorized Hacks 1 | . 1 . . . Terminals 1 | . 1 . . . Botnet 1 | . 1 . . . Fabricators . | . . . . . Repair Stations . | . . . . . Recycling Units . | . . . . . Scanalyzers . | . . . . . Garrison Access . | . . . . . Data Cores Recovered 1 | . 1 . . . Used 1 | . 1 . . . Hacking Detections . | . . . . . Full Trace Events . | . . . . . Feedback Events . | . . . . . Feedback Blocked . | . . . . . Robot Schematics Acquired . | . . . . . Robots Built . | . . . . . Authchips . | . . . . . Time . | . . . . . Total Robot Build Rating . | . . . . . Part Schematics Acquired . | . . . . . Parts Built . | . . . . . Authchips . | . . . . . Time . | . . . . . Total Part Build Rating . | . . . . . Parts Repaired . | . . . . . Time . | . . . . . Parts Recycled . | . . . . . Recycled Matter . | . . . . . Retrieved Matter . | . . . . . Retrieved Components . | . . . . . Parts Scanalyzed . | . . . . . Part Schematics Acquired . | . . . . . Parts Damaged . | . . . . . Bothacking | -11 -10 -10 -10 -9 ------------ Run | Scr Mat Min Exi Min Used RIF Installer . | . . . . . Robots Hacked . | . . . . . Non-combat . | . . . . . Combat . | . . . . . Robot Hacks Applied . | . . . . . Relay Couplers Released . | . . . . . Fabnet Peak Effective % . | . . . . . Robots Rewired . | . . . . . Allies Hacked . | . . . . . Hacks Repelled . | . . . . . Allies | -11 -10 -10 -10 -9 -------- Run | Scr Mat Min Exi Min Total Allies . | . . . . . Largest Group . | . . . . . Highest-Rated Group . | . . . . . Highest-Rated Ally . | . . . . . Total Orders . | . . . . . Ally Attacks . | . . . . . Total Damage . | . . . . . Kills . | . . . . . Allies Corrupted . | . . . . . Allies Melted . | . . . . . Intel | -11 -10 -10 -10 -9 ------- Run | Scr Mat Min Exi Min Robot Analysis Total . | . . . . . Derelict Logs Recovered 1 | . . 1 . . Drone Launches . | . . . . . Drone Recoveries . | . . . . . Exploration | -11 -10 -10 -10 -9 ------------- Run | Scr Mat Min Exi Min Turns Passed 867 | 53 140 192 218 264 Spaces Moved 745 | 51 160 191 268 75 Core 1 | 1 . . . . Treads . | . . . . . Legs . | . . . . . Wheels 744 | 50 160 191 268 75 Hover . | . . . . . Flight . | . . . . . Fastest Speed 50 | 50 80 80 80 80 Average Speed 79 | 79 80 80 80 80 Slowest Speed 80 | 80 80 80 80 80 Overloaded Moves . | . . . . . Propulsion Burnouts . | . . . . . Robots Hopped . | . . . . . Cave-ins Triggered . | . . . . . Exploration Rate (%) 33 | 4 31 43 68 19 Regions Visited 4 Branch Regions 3 Pre-discovered Areas . | . . . . . Known Exits Taken . | . . . . . Unknown Exits Taken 4 | 1 1 1 1 . Scrap Searched . | . . . . . Spaces Dug . | . . . . . Terrain Destroyed . | . . . . . Melee . | . . . . . Projectile . | . . . . . AOE . | . . . . . Terrain Rammed . | . . . . . Walls Destroyed . | . . . . . Machines Disabled . | . . . . . Actions | -11 -10 -10 -10 -9 --------- Run | Scr Mat Min Exi Min Total 953 | 60 169 211 271 242 Wait 151 | . . 9 . 142 Move 741 | 50 159 190 267 75 Hop . | . . . . . Pick Up 11 | 5 2 . 2 2 Fast Attach 9 | 5 2 . 1 1 Attach 4 | . 2 . . 2 Detach 1 | . 1 . . . Swap 2 | . 1 1 . . Drop 3 | . 1 1 1 . Fire 31 | . 1 10 . 20 Melee . | . . . . . Ram . | . . . . . Kick . | . . . . . Crush . | . . . . . Escape Stasis . | . . . . . Rewire . | . . . . . Trap . | . . . . . Miscellaneous . | . . . . . Route ------- -11/Scrapyard -10/Materials -10/Mines (discovered 2 exits: [*Mat] / *Exi) -10/Exiles -9/Mines History --------- Turn | Location | Event 7 | -11/Scrapyard | Discovered new exit (range 16) 54 | -11/Scrapyard | Entered Materials 74 | -10/Materials | Discovered new exit (range 13) 194 | -10/Materials | Entered Mines 220 | -10/Mines | Discovered new exit (range 9) 245 | -10/Mines | Learned Materials stockpile data 315 | -10/Mines | Build established: Mutant 382 | -10/Mines | Deemed a non-threat by the Exiles lab entrance 382 | -10/Mines | Discovered new exit (range 5) 386 | -10/Mines | Entered Exiles 406 | -10/Exiles | Met 8R-AWN 419 | -10/Exiles | Met EX-HEX 441 | -10/Exiles | Met EX-BIN 451 | -10/Exiles | Aligned with FarCom system 451 | -10/Exiles | Given EX-Vault access code 480 | -10/Exiles | Opened EX-Vault 485 | -10/Exiles | Found 0b10 Alert Chip 504 | -10/Exiles | Warned to stay clear of 0b10 Research branches 525 | -10/Exiles | Met EX-DEC 595 | -10/Exiles | Discovered new exit (range 12) 604 | -10/Exiles | Left Exiles lab with 0b10 Alert Chip 604 | -10/Exiles | Entered Mines 685 | -9/Mines | Lost 3 parts (2p1w) 719 | -9/Mines | Excavation squad dispatched 719 | -9/Mines | A large section of the Mines collapsed 868 | -9/Mines | Self-destructed Last Messages --------------- 00622_ Lgt. Ion Engine destroyed. 00624_ Critical hit (Burn: +37). 00638_ Med. Laser destroyed. 00642_ Overheating: System interference. 00642_ EM Pulse Gun temporarily disabled. 00642_ Lgt. Assault Rifle temporarily disabled. 00643_ Overheating: System interference. 00643_ 0b10 Alert Chip temporarily disabled. 00646_ R-06 Scavenger collects Ion Engine. 00648_ Acquired 41 matter. 00649_ Acquired Aluminum Leg. 00654_ Lgt. Ion Engine destroyed. 00655_ G-47 Trooper destroyed. 00655_ R-06 Scavenger collects Corrupted Aluminum Leg. 00658_ Acquired 12 matter. 00659_ R-06 Scavenger collects Aluminum Leg. 00661_ Acquired Lgt. Nuclear Core. 00662_ Acquired 10 matter. 00719_ ALERT: Suspicious cave-in, suspected derelict activity in mines. Dispatching escorted excavation squad. Map ----- +----------------------------------------------------+ | | | | | | | | | | | | | | | | | | | | | | | | | | | | | | | | | | | | | ?????????????????????????????????? | | ?????????????????????????????????? | | ??????????????#########??????????? | | ??????????????# #??????????? | | ??????????????# #????###???? | | ?????#######??# ### ##### ##??? | | ????## #### #?# ### #??? | | ????# """ #?## #@# #??? | | ????# """ #??## ### #??? | | ???## """ ######???### # #??? | | ??## """ ##?????????## #?##??? | | ??# #??????????# #?????? | | ??# #?########## #?????? | | ??## #?# %% g ## #?????? | | ???## #?# " ## #?????? | | ????# g ##?# """ ## #?????? | | ????# ##??# """ #? #?????? | | ????# #???# #? #?????? | | ????# ##### g """ #? #?????? | | ????# ## ## """ #? #?????? | | ?#### ## ## ### """ #? #?????? | | #?# #? #?????? | | ####?###### ##? ??????? | | % ######?????????# #??????????? | | ??????????###### #??????????? | | #??????????# #??????????? | | ## ???????????# ######??????????? | | ?? ?????????????????????????????? | | ?? ?????????????????????????????? | | ?# ??????????????????????????????? | | ?? ??????????????????????????????? | | ?????????????????????????????????? | +----------------------------------------------------+ Best States ------------- Heat Dissipation 25 Energy Generation 14 Energy Capacity 160 Matter Stores 300 Matter Capacity 300 Sight Range 16 Terrain Scan Density 10 Utility Shielding 33 Evasion (%) 44 Offensive Hacking 10 Item Schematics ----------------- None Robot Schematics ------------------ None Fabricated ------------ Nothing Alien Tech Used ----------------- None Achievements -------------- None Challenges ------------ None Game ------ Seed MassTargetingCannon Manual? 0 Play Time 00:12:40 Cumulative 88.4 hours Start 2022.03.20 @ 12:32:52 End 2022.03.20 @ 12:42:43 Sessions 1 Manual Loads 0 Difficulty Rogue Special Mode None Game No. 92 Rogue 92 Adventurer 0 Explorer 0 Win Type - Total 0 Types 0/0/0/0/0/0/0/0/0 Lore% 45 Gallery% 43 Achievement% 35 Wizard Run 0 Options --------- ASCII 0 Keyboard 0 Movement Numpad Keybinds 0 Fullscreen 2 Font 18/TerminusBold Map View 76x50 Tactical HUD 1 Map Filters NONE Filters NONE Steam 1 RUN: 11b165cf-9147-494b-b9cd-1a8b88603ce8